bitfinex-derivatives/quotes_BTCF0:USTF0_20241025
["timestamp","ask_amount","ask_price","bid_price","bid_amount"]
[1729853963205,0.08369049,67899.0,67898.0,0.073687]
[1729853963206,0.17001402,67899.0,67898.0,0.073687]
[1729853965212,0.16993651,67899.0,67898.0,0.073687]
[1729853966413,0.22270279,67899.0,67898.0,0.073687]
[1729853968108,0.1390123,67899.0,67898.0,0.073687]
[1729853968314,0.38481882,67899.0,67898.0,0.073687]
[1729853970017,0.38518049,67899.0,67898.0,0.073687]
[1729853970315,0.24580652,67899.0,67898.0,0.16689527]
[1729853970612,0.08369049,67899.0,67898.0,0.16689527]
[1729853974817,0.08369049,67899.0,67898.0,0.16690613]
[1729853976008,0.08369049,67899.0,67898.0,0.255131]
[1729853976409,0.08369049,67899.0,67898.0,0.16690613]
[1729853976607,0.08369049,67899.0,67898.0,0.255131]
[1729853978218,0.08369049,67899.0,67898.0,0.073687]
[1729853983618,0.0946,67903.0,67898.0,0.24036088]
[1729853983813,0.0946,67903.0,67899.0,0.19957087]
[1729853984019,0.0946,67903.0,67899.0,0.106586]
[1729853984020,0.08369049,67900.0,67899.0,0.106586]
[1729853984222,0.08369049,67900.0,67899.0,0.27319575]
[1729853984923,0.08369049,67900.0,67899.0,0.19969299]
[1729853985129,0.08369049,67900.0,67899.0,0.27318743]
[1729853985327,0.08369049,67900.0,67899.0,0.106586]
[1729853985819,0.24580652,67900.0,67899.0,0.106586]
[1729853986021,0.38618088,67900.0,67899.0,0.106586]
[1729853986323,0.22406485,67900.0,67899.0,0.106586]
[1729853988716,0.22363827,67900.0,67899.0,0.106586]
[1729853989126,0.27772075,67900.0,67899.0,0.106586]
[1729853989323,0.37101927,67900.0,67899.0,0.106586]
[1729853989520,0.22363827,67900.0,67899.0,0.106586]
[1729853993535,0.08369049,67900.0,67899.0,0.31025576]
[1729853998037,0.08369049,67900.0,67899.0,0.106586]
[1729853998236,0.08369049,67900.0,67899.0,0.31026205]
[1729854000548,0.17072555,67900.0,67899.0,0.106586]
[1729854000743,0.22398906,67900.0,67899.0,0.106586]
[1729854000941,0.17072555,67900.0,67899.0,0.106586]
[1729854001339,0.08369049,67900.0,67899.0,0.106586]
[1729854001843,0.22392199,67900.0,67899.0,0.106586]
[1729854002045,0.17073288,67900.0,67899.0,0.106586]
[1729854002345,0.22392133,67900.0,67899.0,0.106586]
[1729854005648,0.17073288,67900.0,67899.0,0.106586]
[1729854007046,0.08704239,67900.0,67899.0,0.106586]
[1729854007245,0.17073288,67900.0,67899.0,0.106586]
[1729854007441,0.22368893,67900.0,67899.0,0.106586]
[1729854008142,0.08704239,67900.0,67899.0,0.106586]
[1729854008439,0.17073288,67900.0,67899.0,0.106586]
[1729854008749,0.12396837,67900.0,67899.0,0.106586]
[1729854008941,0.08369049,67900.0,67899.0,0.106586]
[1729854011549,0.08369049,67900.0,67899.0,0.13369992]
[1729854011747,0.08369049,67900.0,67899.0,0.106586]
[1729854018756,0.08369049,67900.0,67899.0,0.12962872]
[1729854021356,0.03944865,67900.0,67899.0,0.46155397]
[1729854022859,0.03944865,67900.0,67899.0,0.12962872]
[1729854023262,0.02643434,67905.0,67904.0,0.073681]
[1729854023455,0.08369049,67905.0,67904.0,0.073681]
[1729854026265,0.22547972,67905.0,67904.0,0.073681]
[1729854026759,0.17166103,67905.0,67904.0,0.073681]
[1729854029051,0.22568658,67905.0,67904.0,0.073681]
[1729854029360,0.22602708,67905.0,67904.0,0.073681]
[1729854030656,0.08369049,67905.0,67904.0,0.27605137]
[1729854032650,0.08369049,67905.0,67904.0,0.16600486]
[1729854033256,0.08369049,67905.0,67904.0,0.15777459]
[1729854034058,0.08369049,67905.0,67904.0,0.15782701]
[1729854035462,0.08369049,67905.0,67904.0,0.26794283]
[1729854038561,0.22623592,67905.0,67904.0,0.06545073]
[1729854038758,0.22623593,67905.0,67904.0,0.06545073]
[1729854039367,0.17213004,67905.0,67904.0,0.06545073]
[1729854041568,0.22621582,67905.0,67904.0,0.06545073]
[1729854041877,0.27207803,67905.0,67904.0,0.06545073]
[1729854042173,0.37367918,67905.0,67904.0,0.06545073]
[1729854043371,0.23115385,67905.0,67904.0,0.06545073]
[1729854044063,0.37368859,67905.0,67904.0,0.06545073]
[1729854044969,0.22622523,67905.0,67904.0,0.06545073]
[1729854045573,0.08369049,67905.0,67904.0,0.26791197]
[1729854046969,0.16738098,67905.0,67904.0,0.26791197]
[1729854047268,0.20058098,67905.0,67904.0,0.26791197]
[1729854048063,0.20058098,67905.0,67904.0,0.06545073]
[1729854048269,0.20058098,67905.0,67904.0,0.15775335]
[1729854048676,0.20058098,67905.0,67904.0,0.2459089]
[1729854048874,0.20058098,67905.0,67904.0,0.26771731]
[1729854049171,0.20058098,67905.0,67904.0,0.15775335]
[1729854050377,0.20058098,67905.0,67904.0,0.2458984]
[1729854051883,0.20058098,67905.0,67904.0,0.15775335]
[1729854052076,0.20058098,67905.0,67904.0,0.26769186]
[1729854052376,0.20058098,67905.0,67893.0,0.0322]
[1729854052377,0.073683,67902.0,67892.0,0.00150141]
[1729854052676,0.3608,67894.0,67893.0,0.073693]
[1729854053076,0.52818098,67894.0,67893.0,0.073693]
[1729854053275,0.44449049,67894.0,67893.0,0.073693]
[1729854053474,0.52818098,67894.0,67893.0,0.073693]
[1729854053675,0.53737165,67894.0,67893.0,0.073693]
[1729854054675,0.62106214,67894.0,67893.0,0.073693]
[1729854056376,0.67785814,67894.0,67893.0,0.073693]
[1729854056675,0.67791041,67894.0,67893.0,0.073693]
[1729854056883,0.62106214,67894.0,67893.0,0.073693]
[1729854057473,0.6481534,67894.0,67888.0,0.073698]
[1729854057672,0.6481534,67894.0,67885.0,0.073701]
[1729854057673,0.16738098,67889.0,67885.0,0.073701]
[1729854057878,0.08369049,67886.0,67885.0,0.073701]
[1729854058079,0.17658731,67886.0,67885.0,0.073701]
[1729854060370,0.31690256,67886.0,67880.0,0.073706]
[1729854060584,0.44449049,67881.0,67880.0,0.073706]
[1729854061379,0.51819649,67881.0,67878.0,0.07335555]
[1729854061774,0.08369049,67879.0,67878.0,0.07335555]
[1729854062181,0.08369049,67879.0,67876.0,0.14706555]
[1729854062481,0.08369049,67877.0,67876.0,0.14706555]
[1729854062873,0.08369049,67877.0,67875.0,0.0316]
[1729854062874,0.08369049,67877.0,67875.0,0.07335555]
[1729854063080,0.08369049,67876.0,67872.0,0.14707055]
[1729854063394,0.073711,67876.0,67874.0,0.05860309]
[1729854063577,0.3608,67875.0,67874.0,0.05860309]
[1729854063975,0.3608,67875.0,67873.0,0.05860309]
[1729854064171,0.3608,67875.0,67872.0,0.073715]
[1729854064172,0.3608,67875.0,67872.0,0.13231809]
[1729854064377,0.08369049,67874.0,67872.0,0.05860309]
[1729854064575,0.09444,67873.0,67872.0,0.05860309]
[1729854065090,0.09444,67873.0,67871.0,0.05860309]
[1729854065292,0.08369049,67872.0,67868.0,0.073719]
[1729854065475,0.08369049,67869.0,67868.0,0.073719]
[1729854066483,0.52818098,67869.0,67868.0,0.05856]
[1729854066682,0.60190098,67869.0,67866.0,0.05856]
[1729854066884,0.24110198,67867.0,67863.0,0.05856]
[1729854067083,0.16738098,67864.0,67862.0,0.05856]
[1729854067392,0.16738098,67863.0,67862.0,0.04390375]
[1729854067586,0.0321,67868.0,67862.0,0.04390375]
[1729854067792,0.08369049,67863.0,67862.0,0.11762975]
[1729854068180,0.08369049,67863.0,67862.0,0.073726]
[1729854069988,0.08369049,67863.0,67859.0,0.04390375]
[1729854070187,0.08369049,67860.0,67859.0,0.07373]
[1729854072882,0.08369049,67860.0,67859.0,0.11756968]
[1729854073088,0.08369049,67860.0,67859.0,0.07373]
[1729854073689,0.168163,67865.0,67860.0,0.073728]
[1729854073896,0.168163,67865.0,67856.0,0.0325]
[1729854073897,0.16738098,67862.0,67858.0,0.04383968]
[1729854074193,0.3608,67864.0,67856.0,0.0325]
[1729854074194,0.3608,67864.0,67861.0,0.073727]
[1729854074781,0.073723,67865.0,67861.0,0.073727]
[1729854074987,0.08369049,67862.0,67861.0,0.073727]
[1729854077394,0.16738098,67862.0,67861.0,0.073727]
[1729854080093,0.16738098,67862.0,67861.0,0.11756668]
[1729854081195,0.3608,67867.0,67857.0,0.38846174]
[1729854081196,0.3608,67867.0,67864.0,0.073723]
[1729854081495,0.08369049,67865.0,67864.0,0.073723]
[1729854082299,0.16738098,67865.0,67864.0,0.073723]
[1729854083203,0.08369049,67865.0,67864.0,0.1175897]
[1729854083391,0.16738098,67865.0,67864.0,0.1175897]
[1729854083694,0.16738098,67865.0,67864.0,0.073723]
[1729854085498,0.16738098,67865.0,67860.0,0.03]
[1729854085796,0.44449049,67861.0,67860.0,0.073728]
[1729854085988,0.08369049,67861.0,67860.0,0.073728]
[1729854087398,0.08369049,67861.0,67860.0,0.11770136]
[1729854087795,0.08369049,67861.0,67860.0,0.073728]
[1729854087995,0.08369049,67861.0,67860.0,0.11770136]
[1729854088298,0.08369049,67861.0,67860.0,0.073728]
[1729854088600,0.08369049,67861.0,67860.0,0.11772996]
[1729854088998,0.08369049,67861.0,67859.0,0.04400196]
[1729854089194,0.16738098,67860.0,67859.0,0.04403878]
[1729854089400,0.08369049,67860.0,67859.0,0.04403878]
[1729854089598,0.08369049,67860.0,67858.0,0.04403878]
[1729854089902,0.08369049,67859.0,67858.0,0.04403878]
[1729854090704,0.08369049,67859.0,67856.0,0.073732]
[1729854091091,0.08369049,67859.0,67856.0,0.14679814]
[1729854091493,0.08369049,67859.0,67854.0,0.07306614]
[1729854091494,0.24111298,67857.0,67854.0,0.07306614]
[1729854091699,0.51822449,67855.0,67854.0,0.04407295]
[1729854091901,0.61187147,67855.0,67850.0,0.05876292]
[1729854092194,0.07375,67841.0,67836.0,0.073754]
[1729854092406,0.3608,67837.0,67836.0,0.073754]
[1729854094412,0.44449049,67837.0,67836.0,0.073754]
[1729854094613,0.3608,67837.0,67836.0,0.073754]
[1729854094911,0.44449049,67837.0,67836.0,0.073754]
[1729854095800,0.3608,67837.0,67836.0,0.073754]
[1729854095995,0.44449049,67837.0,67836.0,0.073754]
[1729854096700,0.08369049,67837.0,67836.0,0.073754]
[1729854096905,0.08369049,67838.0,67837.0,0.073753]
[1729854100613,0.16738098,67838.0,67837.0,0.073753]
[1729854104007,0.08369049,67838.0,67837.0,0.073753]
[1729854104408,0.02369049,67838.0,67837.0,0.073753]
[1729854104710,0.08369049,67838.0,67837.0,0.073753]
[1729854111006,0.02620566,67842.0,67837.0,0.44224]
[1729854111219,0.3608,67867.0,67866.0,0.073722]
[1729854111413,0.08369049,67872.0,67863.0,0.08369049]
[1729854111609,0.08369049,67864.0,67861.0,0.3608]
[1729854111810,0.08369049,67864.0,67863.0,0.073725]
[1729854112009,0.08369049,67862.0,67861.0,0.434527]
[1729854112522,0.12747705,67866.0,67865.0,0.073723]
[1729854120216,0.02633716,67869.0,67868.0,0.07372]
[1729854120422,0.12747705,67871.0,67862.0,0.0633]
[1729854120617,0.12747705,67871.0,67870.0,0.073718]
[1729854120820,0.64179912,67871.0,67843.0,0.3608]
[1729854121018,0.3608,67854.0,67853.0,0.073736]
[1729854121828,0.12747705,67855.0,67854.0,0.073735]
[1729854123223,0.12747705,67859.0,67851.0,0.12747705]
[1729854123428,0.16027705,67870.0,67858.0,0.12747705]
[1729854123726,0.12747705,67870.0,67869.0,0.073719]
[1729854124529,0.15420186,67870.0,67869.0,0.073719]
[1729854125115,0.073719,67869.0,67864.0,0.073724]
[1729854125332,0.56200005,67865.0,67860.0,0.073728]
[1729854125537,0.12747705,67861.0,67860.0,0.073728]
[1729854128433,0.12747705,67864.0,67863.0,0.073725]
[1729854128743,0.15148029,67864.0,67854.0,0.11324722]
[1729854129037,0.14665504,67863.0,67862.0,0.073726]
[1729854129233,0.15148029,67863.0,67862.0,0.073726]
[1729854129837,0.15148029,67863.0,67858.0,0.12747705]
[1729854130043,0.15148029,67862.0,67854.0,0.12747705]
[1729854130230,0.15148029,67861.0,67854.0,0.12747705]
[1729854130435,0.093983,67860.0,67854.0,0.12747705]
[1729854130634,0.093983,67859.0,67858.0,0.073731]
[1729854133235,0.12747705,67864.0,67858.0,0.073731]
[1729854133437,0.14888342,67863.0,67862.0,0.073726]
[1729854134235,0.14888342,67863.0,67855.0,0.0306]
[1729854134435,0.14888342,67862.0,67861.0,0.073727]
[1729854134637,0.14888342,67863.0,67862.0,0.073726]
[1729854134934,0.14919866,67863.0,67862.0,0.073726]
[1729854135739,0.50865505,67865.0,67864.0,0.073724]
[1729854135740,0.36200001,67865.0,67864.0,0.073724]
[1729854135945,0.3608,67865.0,67864.0,0.073724]
[1729854141348,0.3608,67865.0,67857.0,0.3608]
[1729854141651,0.12747705,67861.0,67860.0,0.073728]
[1729854142148,0.12747705,67861.0,67857.0,0.073731]
[1729854142448,0.12747705,67858.0,67852.0,0.07307344]
[1729854142747,0.3608,67859.0,67849.0,0.07307344]
[1729854142748,0.12747705,67853.0,67849.0,0.07307344]
[1729854142947,0.12747705,67850.0,67847.0,0.073742]
[1729854143148,0.20121705,67850.0,67847.0,0.073742]
[1729854143642,0.20121705,67850.0,67843.0,0.3608]
[1729854143643,0.12747705,67850.0,67843.0,0.3608]
[1729854143843,0.12747705,67844.0,67843.0,0.434547]
[1729854144044,0.21943532,67844.0,67843.0,0.434547]
[1729854144246,0.1700297,67844.0,67843.0,0.434547]
[1729854144753,0.14665504,67857.0,67843.0,1.00422405]
[1729854144940,0.16117912,67862.0,67856.0,0.48827705]
[1729854145144,0.3608,67867.0,67857.0,0.0322]
[1729854145145,0.14721587,67860.0,67857.0,0.0322]
[1729854145349,0.12747705,67862.0,67858.0,0.073731]
[1729854145654,0.12747705,67862.0,67861.0,0.073727]
[1729854145844,0.1847281,67862.0,67861.0,0.073727]
[1729854147051,0.18355203,67862.0,67861.0,0.073727]
[1729854147347,0.05607498,67862.0,67861.0,0.073727]
[1729854148053,0.14840721,67867.0,67866.0,0.073722]
[1729854148255,0.00132,67871.0,67870.0,0.073718]
[1729854148448,0.12747705,67878.0,67866.0,0.3608]
[1729854148644,0.05663085,67877.0,67869.0,0.12747705]
[1729854148846,0.05663085,67876.0,67875.0,0.073711]
[1729854149457,0.1545032,67878.0,67875.0,0.073711]
[1729854149952,0.05692372,67877.0,67875.0,0.073711]
[1729854150150,0.1545032,67878.0,67875.0,0.073711]
[1729854153850,0.3608,67879.0,67878.0,0.073709]
[1729854154154,0.00124,67888.0,67878.0,0.80276]
[1729854154359,0.3608,67898.0,67893.0,0.073692]
[1729854154360,0.0329,67897.0,67893.0,0.073692]
[1729854154750,0.0329,67897.0,67887.0,0.48827705]
[1729854154951,0.12747705,67896.0,67895.0,0.07369]
[1729854155347,0.0329,67897.0,67895.0,0.07369]
[1729854159951,0.3608,67898.0,67897.0,0.073688]
[1729854163962,0.48827705,67904.0,67900.0,0.073685]
[1729854164166,0.12747705,67904.0,67900.0,0.073685]
[1729854164377,0.3608,67904.0,67900.0,0.073685]
[1729854164855,0.3608,67904.0,67901.0,0.073684]
[1729854165054,0.3608,67904.0,67895.0,0.12747705]
[1729854165055,0.02682997,67906.0,67905.0,0.073679]
[1729854165367,0.12747705,67908.0,67905.0,0.073679]
[1729854165954,0.12747705,67908.0,67899.0,0.28175646]
[1729854165955,0.15115224,67907.0,67899.0,0.28175646]
[1729854166162,0.21900805,67906.0,67899.0,0.28175646]
[1729854166462,0.21900805,67905.0,67902.0,0.073682]
[1729854166766,0.21900805,67904.0,67902.0,0.073682]
[1729854167066,0.21900805,67903.0,67902.0,0.03349755]
[1729854167261,0.15115224,67903.0,67902.0,0.03349755]
[1729854169868,0.19890173,67903.0,67902.0,0.03349755]
[1729854170253,0.14152896,67903.0,67902.0,0.03349755]
[1729854172857,0.14152896,67903.0,67899.0,0.28175646]
[1729854173066,0.20938477,67902.0,67901.0,0.073684]
[1729854173263,0.14152896,67902.0,67901.0,0.073684]
[1729854173467,0.14153686,67902.0,67901.0,0.073684]
[1729854173869,0.02598177,67908.0,67904.0,0.073681]
[1729854174061,0.12747705,67909.0,67904.0,0.073681]
[1729854174261,0.04049833,67908.0,67904.0,0.073681]
[1729854174461,0.04049833,67907.0,67904.0,0.073681]
[1729854174662,0.04049833,67906.0,67904.0,0.073681]
[1729854174862,0.15343018,67909.0,67904.0,0.073681]
[1729854175066,0.04053724,67908.0,67904.0,0.073681]
[1729854175261,0.15343018,67909.0,67904.0,0.073681]
[1729854175262,0.04053724,67907.0,67904.0,0.073681]
[1729854175564,0.04053724,67906.0,67904.0,0.073681]
[1729854175766,0.15343018,67909.0,67904.0,0.073681]
[1729854175767,0.04053724,67905.0,67904.0,0.073681]
[1729854175963,0.3608,67906.0,67904.0,0.073681]
[1729854176170,0.04053724,67905.0,67904.0,0.073681]
[1729854179071,0.04079444,67905.0,67904.0,0.073681]
[1729854179276,0.08817345,67905.0,67904.0,0.073681]
[1729854180671,0.08817345,67905.0,67899.0,0.073686]
[1729854180866,0.56323705,67906.0,67887.0,0.4198054]
[1729854180867,0.12747705,67901.0,67887.0,0.4198054]
[1729854181079,0.19048441,67898.0,67894.0,0.12747705]
[1729854181269,0.19048441,67898.0,67897.0,0.073688]
[1729854181470,0.20584959,67898.0,67897.0,0.073688]
[1729854182078,0.06377889,67898.0,67897.0,0.073688]
[1729854182270,0.19737345,67898.0,67897.0,0.073688]
[1729854183476,0.19737345,67898.0,67893.0,0.073693]
[1729854183776,0.12747705,67894.0,67893.0,0.073693]
[1729854183982,0.3248505,67894.0,67893.0,0.073693]
[1729854184477,0.26107161,67894.0,67893.0,0.073693]
[1729854184881,0.3248505,67894.0,67893.0,0.073693]
[1729854186574,0.37582696,67894.0,67893.0,0.073693]
[1729854186774,0.32511855,67894.0,67893.0,0.073693]
[1729854186975,0.32511855,67894.0,67893.0,0.03611372]
[1729854187780,0.32511855,67894.0,67880.0,0.48827705]
[1729854187982,0.19144459,67884.0,67883.0,0.073704]
[1729854188177,0.38908609,67884.0,67883.0,0.0783132]
[1729854188776,0.1976415,67884.0,67883.0,0.0783132]
[1729854189091,0.20116905,67894.0,67883.0,0.0046092]
[1729854189286,0.20116905,67894.0,67891.0,0.073695]
[1729854190383,0.20116905,67894.0,67892.0,0.073693]
[1729854191185,0.05888835,67898.0,67895.0,0.07369]
[1729854191186,0.02698835,67898.0,67895.0,0.07369]
[1729854191384,0.12747705,67899.0,67897.0,0.073687]
[1729854191589,0.12747705,67899.0,67898.0,0.073687]
[1729854195882,0.17219544,67899.0,67898.0,0.073687]
[1729854196081,0.13415516,67899.0,67889.0,0.08317536]
[1729854196287,0.13415516,67898.0,67897.0,0.073688]
[1729854197284,0.19438058,67898.0,67897.0,0.073688]
[1729854197484,0.13415516,67898.0,67897.0,0.073688]
[1729854197982,0.19016786,67898.0,67897.0,0.073688]
[1729854198685,0.14084568,67898.0,67897.0,0.073688]
[1729854198885,0.09753153,67898.0,67897.0,0.073688]
[1729854199998,0.06022542,67898.0,67897.0,0.073688]
[1729854203376,0.09135454,67900.0,67894.0,0.3608]
[1729854203576,0.09135454,67900.0,67898.0,0.073687]
[1729854204587,0.05945454,67900.0,67894.0,0.3608]
[1729854204794,0.05945454,67900.0,67899.0,0.073686]
[1729854207589,0.02625454,67900.0,67899.0,0.073686]
[1729854207789,0.19144459,67902.0,67901.0,0.073684]
[1729854207990,0.19144459,67902.0,67901.0,0.20116105]
[1729854208292,0.19144459,67902.0,67901.0,0.56196105]
[1729854209298,0.19144459,67902.0,67901.0,0.434484]
[1729854209494,0.12747705,67907.0,67905.0,0.073679]
[1729854209795,0.12747705,67907.0,67906.0,0.073679]
[1729854214392,0.02673528,67910.0,67909.0,0.073675]
[1729854214592,0.03772889,67910.0,67909.0,0.073675]
[1729854215492,0.39852889,67910.0,67909.0,0.073675]
[1729854216595,0.03772889,67910.0,67909.0,0.073675]
[1729854216900,0.39852889,67910.0,67909.0,0.073675]
[1729854218087,0.39852889,67910.0,67898.0,0.3608]
[1729854218294,0.12747705,67904.0,67898.0,0.3608]
[1729854218895,0.13312752,67903.0,67898.0,0.31650965]
[1729854219116,0.13312752,67902.0,67901.0,0.073684]
[1729854219295,0.13312752,67902.0,67901.0,0.03638948]
[1729854219901,0.22390285,67902.0,67901.0,0.03638948]
[1729854220201,0.16492752,67902.0,67901.0,0.03638948]
[1729854220504,0.41534744,67902.0,67901.0,0.03638948]
[1729854220896,0.22390285,67902.0,67901.0,0.03638948]
[1729854221096,0.35624534,67902.0,67901.0,0.03638948]
[1729854221707,0.41522067,67902.0,67901.0,0.03638948]
[1729854221898,0.35624534,67902.0,67901.0,0.03638948]
[1729854222502,0.22390285,67902.0,67901.0,0.03638948]
[1729854222703,0.16492752,67902.0,67901.0,0.03638948]
[1729854222891,0.13312752,67902.0,67901.0,0.60566653]
[1729854223101,0.13312752,67902.0,67901.0,0.61027435]
[1729854223403,0.19131782,67912.0,67911.0,0.073673]
[1729854223799,0.05847168,67912.0,67910.0,0.48903705]
[1729854223993,0.19131782,67913.0,67912.0,0.073672]
[1729854224199,0.05847168,67913.0,67911.0,0.073673]
[1729854224400,0.19131782,67914.0,67913.0,0.073671]
[1729854224701,0.19131782,67915.0,67911.0,0.073673]
[1729854224905,0.19131782,67917.0,67916.0,0.073668]
[1729854226201,0.06,67918.0,67917.0,0.073667]
[1729854230801,0.4208,67918.0,67917.0,0.073667]
[1729854232011,0.4208,67918.0,67907.0,0.12747705]
[1729854232213,0.12747705,67915.0,67914.0,0.07367]
[1729854232514,0.42204,67918.0,67914.0,0.07367]
[1729854232708,0.4208,67918.0,67917.0,0.073667]
[1729854234008,0.60131935,67918.0,67906.0,0.38168006]
[1729854234308,0.18051935,67917.0,67906.0,0.50915711]
[1729854234499,0.12458859,67916.0,67906.0,0.50915711]
[1729854234704,0.12747705,67914.0,67906.0,0.48827705]
[1729854234905,0.18858859,67913.0,67906.0,0.48827705]
[1729854235104,0.12458859,67912.0,67911.0,0.073673]
[1729854236715,0.47977376,67912.0,67911.0,0.073673]
[1729854237013,0.53570452,67912.0,67911.0,0.073673]
[1729854240809,0.53523185,67912.0,67911.0,0.073673]
[1729854241119,0.3608,67912.0,67911.0,0.25938554]
[1729854241316,0.38726602,67912.0,67911.0,0.25938554]
[1729854241835,0.38726602,67912.0,67911.0,0.17142975]
[1729854244235,0.38726602,67912.0,67911.0,0.28802656]
[1729854244434,0.34302899,67912.0,67911.0,0.28802656]
[1729854245830,0.34302899,67912.0,67911.0,0.17142975]
[1729854246031,0.36997752,67912.0,67911.0,0.17142975]
[1729854246228,0.36997752,67912.0,67911.0,0.28761806]
[1729854248133,0.02694853,67912.0,67911.0,0.28761806]
[1729854248441,0.064,67913.0,67912.0,0.073672]
[1729854248736,0.064,67913.0,67912.0,0.28761706]
[1729854250025,0.09013368,67913.0,67912.0,0.28761706]
[1729854251331,0.12063368,67913.0,67912.0,0.28761706]
[1729854251834,0.19430468,67913.0,67912.0,0.18563442]
[1729854252133,0.19430468,67913.0,67912.0,0.09775675]
[1729854253335,0.19430468,67913.0,67912.0,0.18563442]
[1729854253735,0.19430468,67913.0,67912.0,0.09775675]
[1729854254133,0.12063368,67913.0,67912.0,0.09775675]
[1729854256029,0.24100493,67913.0,67911.0,0.073673]
[1729854256229,0.074682,67912.0,67911.0,0.073673]
[1729854259433,0.12037111,67912.0,67911.0,0.073673]
[1729854260042,0.12037111,67912.0,67908.0,0.073675]
[1729854260342,0.08360698,67909.0,67908.0,0.073675]
[1729854260542,0.15828898,67909.0,67908.0,0.073675]
[1729854261340,0.15828898,67909.0,67901.0,0.3608]
[1729854261341,0.11816523,67909.0,67901.0,0.3608]
[1729854261541,0.43578913,67908.0,67903.0,0.073681]
[1729854261734,0.07498913,67907.0,67903.0,0.073681]
[1729854262259,0.14889771,67906.0,67903.0,0.073681]
[1729854262546,0.1212008,67905.0,67904.0,0.073681]
[1729854262738,0.20480778,67905.0,67904.0,0.073681]
[1729854263041,0.20474949,67905.0,67904.0,0.073681]
[1729854264041,0.1587675,67905.0,67904.0,0.073681]
[1729854264643,0.08360698,67905.0,67904.0,0.28691462]
[1729854264951,0.0393657,67905.0,67904.0,0.28691462]
[1729854266453,0.13908955,67905.0,67904.0,0.21323362]
[1729854266653,0.06540955,67905.0,67904.0,0.28691462]
[1729854267352,0.06540955,67905.0,67904.0,0.21323362]
[1729854268446,0.06540955,67905.0,67904.0,0.28691462]
[1729854268645,0.06540955,67905.0,67904.0,0.073681]
[1729854268847,0.06540955,67905.0,67904.0,0.28667401]
[1729854269444,0.06540955,67905.0,67904.0,0.21299301]
[1729854270842,0.06540955,67905.0,67904.0,0.17085104]
[1729854271545,0.06540955,67905.0,67904.0,0.073681]
[1729854273053,0.3608,67908.0,67904.0,0.08360698]
[1729854273254,0.073673,67912.0,67907.0,0.073677]
[1729854273559,0.08360698,67908.0,67907.0,0.073677]
[1729854277355,0.08360698,67908.0,67902.0,0.073682]
[1729854277656,0.08360698,67901.0,67899.0,0.36156]
[1729854277954,0.08360698,67901.0,67899.0,0.3608]
[1729854278358,0.08360698,67901.0,67899.0,0.44440698]
[1729854278845,0.08360698,67901.0,67900.0,0.073685]
[1729854279462,0.3608,67922.0,67907.0,0.073677]
[1729854279645,0.08360698,67919.0,67917.0,0.073667]
[1729854279850,0.08360698,67919.0,67917.0,0.17028833]
[1729854280147,0.08360698,67919.0,67917.0,0.25817058]
[1729854280445,0.08360698,67919.0,67917.0,0.17028833]
[1729854281751,0.11045233,67919.0,67917.0,0.17028833]
[1729854282256,0.11045233,67919.0,67917.0,0.24346978]
[1729854282657,0.11045233,67919.0,67917.0,0.24329208]
[1729854283455,0.11045233,67919.0,67917.0,0.14684845]
[1729854284360,0.11045233,67919.0,67917.0,0.073667]
[1729854286855,0.13688929,67918.0,67917.0,0.073667]
[1729854288264,0.09557965,67918.0,67917.0,0.073667]
[1729854288961,0.13683072,67918.0,67917.0,0.073667]
[1729854290370,0.13683072,67918.0,67909.0,0.0305]
[1729854290565,0.3608,67916.0,67915.0,0.073669]
[1729854290751,0.43763072,67916.0,67906.0,0.3608]
[1729854290952,0.3608,67910.0,67898.0,0.0623]
[1729854291255,0.07681478,67909.0,67905.0,0.073679]
[1729854291453,0.07681478,67909.0,67899.0,0.38786466]
[1729854291454,0.03557965,67908.0,67906.0,0.073679]
[1729854291658,0.03557965,67908.0,67899.0,0.38786466]
[1729854291659,0.10925765,67907.0,67899.0,0.073686]
[1729854291961,0.08360698,67900.0,67899.0,0.073686]
[1729854292261,0.08360698,67900.0,67891.0,0.3608]
[1729854292262,0.24342207,67900.0,67891.0,0.3608]
[1729854292462,0.08360698,67892.0,67891.0,0.434495]
[1729854293652,0.11858923,67892.0,67891.0,0.434495]
[1729854294654,0.03936009,67892.0,67891.0,0.64691137]
[1729854294859,0.434489,67897.0,67893.0,0.073692]
[1729854295167,0.08360698,67894.0,67893.0,0.073692]
[1729854295358,0.08360698,67894.0,67893.0,0.17059957]
[1729854296065,0.08360698,67894.0,67893.0,0.2857008]
[1729854298167,0.3608,67904.0,67893.0,0.2857008]
[1729854298168,0.073679,67906.0,67893.0,0.29561578]
[1729854298363,0.073679,67906.0,67894.0,0.2120088]
[1729854298364,0.08360698,67900.0,67894.0,0.2120088]
[1729854298667,0.08360698,67900.0,67899.0,0.073686]
[1729854298966,0.08360698,67900.0,67899.0,0.17059357]
[1729854302667,0.08360698,67900.0,67899.0,0.25836008]
[1729854302865,0.08360698,67900.0,67899.0,0.09690757]
[1729854303162,0.16721396,67900.0,67898.0,0.07315021]
[1729854303367,0.08360698,67899.0,67898.0,0.07315021]
[1729854303566,0.08360698,67899.0,67893.0,0.0877651]
[1729854303567,0.073687,67898.0,67897.0,0.07315021]
[1729854303763,0.3608,67914.0,67897.0,0.45690862]
[1729854303967,0.3608,67914.0,67909.0,0.073675]
[1729854303968,0.08360698,67910.0,67909.0,0.073675]
[1729854304264,0.08360698,67910.0,67909.0,0.1694833]
[1729854305162,0.08360698,67910.0,67909.0,0.0958083]
[1729854305364,0.08360698,67910.0,67908.0,0.073676]
[1729854305555,0.44440698,67909.0,67908.0,0.073676]
[1729854306658,0.44440698,67909.0,67908.0,0.16981137]
[1729854307968,0.44440698,67909.0,67908.0,0.2429234]
[1729854308175,0.08360698,67909.0,67908.0,0.2429234]
[1729854308371,0.08360698,67909.0,67908.0,0.16981137]
[1729854309663,0.16090998,67909.0,67908.0,0.073676]
[1729854312967,0.11937807,67909.0,67908.0,0.073676]
[1729854313265,0.08360698,67909.0,67908.0,0.073676]
[1729854313581,0.11921875,67909.0,67908.0,0.073676]
[1729854313876,0.48001875,67909.0,67908.0,0.073676]
[1729854314880,0.5213888,67909.0,67908.0,0.073676]
[1729854316773,0.5213888,67909.0,67908.0,0.11754881]
[1729854316774,0.44440698,67909.0,67908.0,0.11754881]
[1729854318374,0.44440698,67909.0,67908.0,0.073676]
[1729854319182,0.44440698,67909.0,67907.0,0.07367]
[1729854319485,0.44440698,67909.0,67908.0,0.073669]
[1729854324080,0.08360698,67909.0,67908.0,0.073669]
[1729854333394,0.08360698,67909.0,67908.0,0.24326562]